bitfinex/quotes_SOLUSD_20250402
["timestamp","ask_amount","ask_price","bid_price","bid_amount"]
[1743630407979,114.67892606,125.25,125.21,16.8352]
[1743630408155,82.1,125.24,125.21,16.8352]
[1743630410567,82.1,125.24,125.22,2.6704]
[1743630411868,82.1,125.24,125.23,7.9853]
[1743630412064,79.4296,125.22,125.2,0.063]
[1743630412281,113.87201077,125.21,125.2,0.063]
[1743630412578,34.44241077,125.21,125.2,0.063]
[1743630414283,42.42891077,125.21,125.2,0.063]
[1743630417482,42.42891077,125.21,125.18,1.508]
[1743630417483,82.46348471,125.19,125.18,1.508]
[1743630417791,0.42648471,125.19,125.18,1.508]
[1743630418273,25.18241077,125.19,125.18,1.508]
[1743630418887,33.17021077,125.19,125.18,1.508]
[1743630419089,8.41428471,125.19,125.18,1.508]
[1743630419276,33.17021077,125.19,125.18,1.508]
[1743630423189,8.41428471,125.19,125.18,1.508]
[1743630423387,33.17021077,125.19,125.18,1.508]
[1743630424293,8.41428471,125.19,125.18,1.508]
[1743630424491,33.17021077,125.19,125.18,1.508]
[1743630425468,8.41428471,125.19,125.18,1.508]
[1743630425799,33.17021077,125.19,125.18,1.508]
[1743630426674,0.42648471,125.18,125.13,1.5662]
[1743630426875,0.28432314,125.15,125.13,1.5662]
[1743630427096,9.54432314,125.15,125.13,1.5662]
[1743630428282,24.89808763,125.14,125.13,1.5662]
[1743630428597,25.18241077,125.14,125.13,1.5662]
[1743630429886,16.37155397,125.14,125.13,1.5662]
[1743630430196,24.36255397,125.14,125.13,1.5662]
[1743630431797,33.33243139,125.14,125.13,1.5662]
[1743630432589,25.34143139,125.14,125.13,1.5662]
[1743630432991,0.28432314,125.13,125.12,0.063]
[1743630433193,25.34143139,125.13,125.12,0.063]
[1743630433895,0.14216157,125.13,125.12,1.6627]
[1743630434073,24.91494668,125.14,125.12,1.6627]
[1743630434274,0.14216157,125.13,125.12,1.6627]
[1743630434479,24.91494668,125.14,125.12,1.6627]
[1743630434699,0.14216157,125.13,125.12,1.6627]
[1743630435074,0.28432314,125.13,125.12,9.655]
[1743630435292,24.91494668,125.14,125.12,9.655]
[1743630435496,8.13206157,125.16,125.12,9.655]
[1743630435497,25.05710825,125.16,125.12,9.655]
[1743630435798,0.28432314,125.15,125.12,9.655]
[1743630436380,0.14216157,125.15,125.12,9.655]
[1743630436614,0.28432314,125.15,125.12,9.655]
[1743630437112,24.91494668,125.16,125.12,9.655]
[1743630437313,9.24,125.16,125.12,9.655]
[1743630437480,34.15494668,125.16,125.12,9.655]
[1743630437787,116.25494668,125.16,125.12,9.655]
[1743630438704,82.52648471,125.15,125.14,6.3167]
[1743630439513,82.1,125.15,125.14,6.3167]
[1743630442706,82.1,125.15,125.14,14.3077]
[1743630442905,82.1,125.15,125.14,6.3167]
[1743630443084,82.1,125.15,125.14,14.3077]
[1743630443892,24.91494668,125.18,125.15,1.6243]
[1743630444092,80.4334,125.17,125.15,1.6243]
[1743630444986,80.4334,125.16,125.15,1.6243]
[1743630445596,80.4334,125.16,125.15,9.6147]
[1743630446707,80.4334,125.16,125.15,1.6243]
[1743630447611,80.4334,125.16,125.15,9.6147]
[1743630448513,80.4334,125.16,125.15,1.6243]
[1743630448913,89.6734,125.19,125.15,9.6147]
[1743630449094,114.58834668,125.19,125.15,9.6147]
[1743630449495,105.34834668,125.19,125.15,9.6147]
[1743630449714,80.85988471,125.18,125.15,1.6243]
[1743630449911,105.77483139,125.18,125.15,1.6243]
[1743630451696,104.78384624,125.18,125.15,1.6243]
[1743630452514,0.28432314,125.16,125.15,1.6243]
[1743630453803,80.4334,125.17,125.15,1.6243]
[1743630455517,0.063,125.16,125.15,1.6543]
[1743630459000,0.063,125.16,125.15,9.6447]
[1743630460102,0.063,125.16,125.15,1.6543]
[1743630460622,0.063,125.16,125.15,9.6447]
[1743630462223,0.063,125.16,125.15,1.6543]
[1743630477637,8.47918471,125.16,125.15,0.03]
[1743630477843,16.42434624,125.16,125.15,0.03]
[1743630478139,0.34732314,125.16,125.15,0.03]
[1743630478842,0.063,125.16,125.15,0.03]
[1743630487951,8.19486157,125.16,125.15,0.03]
[1743630488643,0.063,125.16,125.15,0.03]
[1743630513070,0.063,125.16,125.15,1.6578]
[1743630514182,0.063,125.16,125.15,9.6482]
[1743630515577,82.1,125.19,125.15,9.6482]
[1743630517055,82.1,125.19,125.15,29.6242]
[1743630519576,0.063,125.2,125.15,29.6242]
[1743630520163,0.063,125.2,125.15,69.5762]
[1743630520363,0.063,125.2,125.17,1.6202]
[1743630520563,0.063,125.2,125.18,7.9884]
[1743630524497,0.063,125.2,125.19,7.8823]
[1743630525374,0.063,125.2,125.19,15.8701]
[1743630540998,0.063,125.2,125.19,1.633]
[1743630541199,15.99786153,125.2,125.16,1.6104]
[1743630541702,23.98506153,125.2,125.16,9.6001]
[1743630542098,15.93486153,125.19,125.16,1.6104]
[1743630542482,15.93486153,125.18,125.16,0.03]
[1743630542690,25.07486153,125.17,125.16,0.03]
[1743630543185,89.24079236,125.17,125.16,0.03]
[1743630543383,0.28432314,125.16,125.15,0.03]
[1743630543585,79.95863079,125.16,125.15,0.03]
[1743630543791,87.94833079,125.16,125.15,0.03]
[1743630544389,88.09049236,125.16,125.15,0.03]
[1743630544613,87.50546157,125.15,125.12,0.063]
[1743630544814,16.0770231,125.13,125.12,0.063]
[1743630544993,16.36134624,125.13,125.12,0.063]
[1743630545415,0.28432314,125.12,125.08,0.03]
[1743630545719,15.93486153,125.09,125.08,0.03]
[1743630545887,23.92906153,125.09,125.08,0.03]
[1743630546901,0.42648471,125.08,125.05,0.03]
[1743630547104,16.36134624,125.06,125.05,0.03]
[1743630547299,16.36134624,125.06,125.02,0.47006477]
[1743630547300,16.0770231,125.04,125.02,0.47006477]
[1743630547816,24.0744231,125.04,125.02,0.47006477]
[1743630548315,88.09819236,125.04,125.02,0.47006477]
[1743630548498,0.28432314,125.03,125.02,0.47006477]
[1743630548699,16.36134624,125.03,125.02,0.47006477]
[1743630548905,21.62464624,125.03,125.02,0.47006477]
[1743630549219,45.60464624,125.03,124.97,12.24040149]
[1743630549418,16.21918467,124.98,124.97,12.24040149]
[1743630549719,25.35918467,124.98,124.96,2.848642]
[1743630550022,15.93486153,124.97,124.96,2.848642]
[1743630550202,9.42432314,124.98,124.96,2.848642]
[1743630550522,25.35918467,124.98,124.96,2.848642]
[1743630550817,16.21918467,124.97,124.96,2.848642]
[1743630555008,25.35918467,124.97,124.96,2.848642]
[1743630556617,25.35918467,124.97,124.96,10.851142]
[1743630557327,25.35918467,124.97,124.96,2.848642]
[1743630558818,25.35918467,124.97,124.96,10.851142]
[1743630559732,25.07486153,124.97,124.96,10.851142]
[1743630559935,9.14,124.97,124.96,10.851142]
[1743630561252,25.07486153,124.97,124.96,10.851142]
[1743630561627,25.35918467,124.97,124.96,10.851142]
[1743630562440,25.35918467,124.97,124.96,2.848642]
[1743630562943,25.35918467,124.97,124.96,2.878642]
[1743630569530,9.42432314,124.97,124.96,2.878642]
[1743630569733,25.35918467,124.97,124.96,2.878642]
[1743630571042,25.2170231,124.97,124.96,2.878642]
[1743630571247,9.14,124.97,124.96,2.878642]
[1743630571445,9.14,124.97,124.96,10.881142]
[1743630571948,82.1,124.99,124.97,1.5246]
[1743630573143,82.1,124.99,124.98,8.0012]
[1743630574152,98.03486153,124.99,124.98,8.0012]
[1743630575046,82.1,124.99,124.98,8.0012]
[1743630585443,82.1,124.99,124.97,9.5562]
[1743630586339,98.09786153,125.02,124.97,29.561]
[1743630587261,98.09786153,125.02,124.97,20.0048]
[1743630587458,82.163,125.02,124.97,20.0048]
[1743630588041,82.163,125.02,124.97,20.0348]
[1743630588359,82.163,125.02,124.97,28.0364]
[1743630590363,82.163,125.02,124.98,1.6259]
[1743630590554,98.09786153,125.02,124.98,1.6259]
[1743630591544,106.09666153,125.02,124.98,1.6259]
[1743630591749,15.93486153,125.01,124.98,1.6259]
[1743630592147,15.93486153,125.0,124.97,0.03]
[1743630592343,15.93486153,124.99,124.97,0.03]
[1743630592545,98.03486153,125.0,124.97,0.03]
[1743630593554,23.93546153,124.99,124.97,0.03]
[1743630593946,8.0006,124.99,124.97,0.03]
[1743630594261,90.1002,125.0,124.97,0.03]
[1743630594448,106.03506153,125.0,124.97,0.03]
[1743630594650,82.38432314,124.99,124.97,0.03]
[1743630595554,90.38512314,124.99,124.97,0.03]
[1743630596564,82.38432314,124.99,124.97,0.03]
[1743630599066,82.1,124.98,124.97,0.03]
[1743630599456,0.063,125.02,124.97,0.03]
[1743630599657,0.063,125.02,124.99,8.0006]
[1743630601553,0.063,125.02,124.99,28.0022]
[1743630602363,0.063,125.02,124.99,8.0006]
[1743630603367,0.063,125.02,124.98,1.5683]
[1743630603368,0.063,125.02,124.98,8.0011]
[1743630603547,15.99786153,125.02,124.98,8.0011]
[1743630603751,15.99786153,125.02,124.97,8.0319]
[1743630604454,82.38432314,125.01,124.97,0.03]
[1743630607352,90.38372314,125.01,124.97,0.03]
[1743630607857,82.1,125.0,124.97,0.03]
[1743630623183,82.163,125.0,124.97,0.03]
[1743630624480,0.063,125.02,125.0,1.6443]
[1743630624676,82.1,125.09,125.01,26.0]
[1743630624877,82.1,125.09,125.02,7.9611]
[1743630625264,82.1,125.09,125.03,27.9932]
[1743630625667,9.06,125.11,125.04,0.14216157]
[1743630625878,82.1,125.12,125.04,0.14216157]
[1743630626057,82.1,125.12,125.06,26.0]
[1743630627484,82.1,125.12,125.07,7.9955]
[1743630628069,82.1,125.12,125.07,27.9843]
[1743630629787,0.063,125.13,125.08,6.4612]
[1743630631874,0.063,125.13,125.09,7.9942]
[1743630633477,0.063,125.13,125.1,1.5558]
[1743630635619,15.93486153,125.11,125.1,1.5558]
[1743630635781,82.38432314,125.1,125.01,1.5704]
[1743630636101,16.0770231,125.11,125.03,1.5704]
[1743630636102,15.93486153,125.08,125.03,1.5704]
[1743630636612,24.97486153,125.07,125.03,1.5704]
[1743630637399,82.1,125.06,125.03,1.5704]
[1743630641899,15.93486153,125.05,125.02,0.03]
[1743630642588,82.38432314,125.04,125.02,0.03]
[1743630642777,82.1,125.03,125.02,0.03]
[1743630644289,98.46134624,125.03,125.02,0.03]
[1743630644504,24.35934624,125.03,125.02,0.03]
[1743630646611,8.42448471,125.03,125.02,0.03]
[1743630646790,24.35934624,125.03,125.02,0.03]
[1743630651035,16.36134624,125.03,125.02,0.03]
[1743630651837,24.35934624,125.03,125.02,0.03]
[1743630654625,16.36134624,125.0,124.97,8.0319]
[1743630654803,91.11,124.99,124.97,8.0319]
[1743630660624,82.07,124.98,124.97,8.0319]
[1743630667218,82.07,124.98,124.97,0.03]
[1743630674734,91.09,125.01,124.97,0.03]
[1743630680557,91.09,125.01,124.99,8.0006]
[1743630688772,107.02486153,125.01,124.97,28.0357]
[1743630689064,0.063,125.03,125.0,34.0437]
[1743630690663,0.063,125.03,125.01,7.9993]
[1743630697280,0.063,125.03,125.01,8.0293]
[1743630710083,0.063,125.03,125.01,0.03]
[1743630713384,15.99786153,125.03,125.01,0.03]
[1743630713593,0.063,125.03,125.01,0.03]
[1743630716863,15.99786153,125.03,125.01,0.03]
[1743630719095,0.063,125.03,125.01,0.03]
[1743630720390,15.99786153,125.03,125.01,0.03]
[1743630720776,15.93486153,125.02,125.01,0.03]
[1743630720976,16.21918467,125.02,125.01,0.03]
[1743630721580,0.28432314,125.02,125.01,0.03]
[1743630723413,24.21788467,125.02,125.01,0.03]
[1743630723576,24.36004624,125.02,125.01,0.03]
[1743630727806,8.42518471,125.02,125.01,0.03]
[1743630728177,24.36004624,125.02,125.01,0.03]
[1743630728896,8.42518471,125.02,125.01,0.03]
[1743630729094,24.36004624,125.02,125.01,0.03]
[1743630733602,24.42304624,125.02,125.01,0.03]
[1743630740119,8.48818471,125.02,125.01,0.03]
[1743630740294,33.36304624,125.02,125.01,0.03]
[1743630742304,17.42818471,125.02,125.01,0.03]
[1743630742507,33.36304624,125.02,125.01,0.03]
[1743630750816,16.36134624,124.99,124.97,1.6141]
[1743630751108,82.21216157,124.98,124.97,1.6141]
[1743630751313,82.49648471,124.98,124.97,1.6141]
[1743630754309,0.42648471,124.98,124.97,1.6141]
[1743630757306,16.36134624,124.98,124.97,1.6141]
[1743630757805,8.42768471,124.98,124.97,1.6141]
[1743630758008,24.36254624,124.98,124.97,1.6141]
[1743630759125,24.36254624,124.98,124.97,0.03]
[1743630760519,16.36134624,124.98,124.97,0.03]
[1743630763127,24.36254624,124.98,124.97,0.03]
[1743630764826,16.36134624,124.98,124.97,0.03]
[1743630768833,0.42648471,124.98,124.97,0.03]
[1743630769016,16.36134624,124.98,124.97,0.03]
[1743630769322,24.36254624,124.98,124.97,0.03]
[1743630769734,0.42648471,124.98,124.97,0.03]
[1743630770637,8.42768471,124.98,124.97,0.03]
[1743630771135,9.20432314,124.98,124.97,0.03]
[1743630780430,9.20432314,124.98,124.97,6.1147]
[1743630782941,9.20432314,124.98,124.97,0.03]
[1743630783550,17.20552314,124.98,124.97,0.03]
[1743630788748,33.28254624,124.98,124.97,0.03]
[1743630789247,17.20552314,124.98,124.97,0.03]
[1743630789450,33.28254624,124.98,124.97,0.03]
[1743630789957,17.20552314,124.98,124.97,0.03]
[1743630790156,33.14038467,124.98,124.97,0.03]
[1743630790653,32.9982231,124.98,124.97,0.03]
[1743630793642,33.28254624,124.98,124.97,0.03]
[1743630801585,17.34768471,124.98,124.97,0.03]
[1743630801767,0.42648471,124.98,124.97,0.03]
[1743630802071,17.30768471,124.98,124.97,0.03]
[1743630803166,33.24254624,124.98,124.97,0.03]
[1743630804166,17.30768471,124.98,124.97,0.03]
[1743630804665,33.24254624,124.98,124.97,0.03]
[1743630804845,9.30648471,124.98,124.97,0.03]
[1743630805050,17.30768471,124.98,124.97,0.03]
[1743630805247,82.1,125.05,125.0,1.596]
[1743630805455,82.1,125.05,125.02,1.596]
[1743630805859,80.4334,125.05,125.04,1.596]
[1743630806061,80.4334,125.09,125.04,1.596]
[1743630807069,80.4334,125.09,125.05,7.9968]
[1743630812265,88.4277,125.09,125.04,9.5932]
[1743630812464,104.36256153,125.09,125.04,9.5932]
[1743630812968,80.4334,125.09,125.04,9.5932]
[1743630813160,96.36826153,125.09,125.04,9.5932]
[1743630813658,104.36246153,125.09,125.04,9.5932]
[1743630815675,104.36246153,125.09,125.04,9.6232]
[1743630815881,104.42546153,125.09,125.04,9.6232]
[1743630816483,88.4906,125.09,125.04,9.6232]
[1743630816692,80.4964,125.09,125.04,9.6232]
[1743630817285,96.43126153,125.09,125.04,9.6232]
[1743630820887,104.42546153,125.09,125.04,9.6232]
[1743630821278,15.93486153,125.05,125.04,0.03]
[1743630821475,8.86,125.05,125.04,0.03]
[1743630821675,24.79486153,125.05,125.04,0.03]
[1743630822057,25.22134624,125.05,125.04,0.03]
[1743630822767,33.21814624,125.05,125.04,0.03]
[1743630825768,7.9966,125.06,125.04,0.03]
[1743630825973,9.00216157,125.05,125.04,0.03]
[1743630826188,9.28648471,125.05,125.04,0.03]
[1743630830071,25.22134624,125.05,125.04,0.03]
[1743630832275,33.21814624,125.05,125.04,0.03]
[1743630837777,25.22134624,125.05,125.04,0.03]
[1743630840298,33.21814624,125.05,125.04,0.03]
[1743630841305,25.22134624,125.05,125.04,0.03]
[1743630846912,15.93486153,125.05,125.04,0.03]
[1743630847118,16.36134624,125.07,125.04,0.03]
[1743630847318,16.0770231,125.07,125.04,0.03]
[1743630847617,8.84,125.06,125.04,0.03]
[1743630848199,24.77486153,125.06,125.04,0.03]
[1743630849104,15.93486153,125.06,125.04,0.03]
[1743630849306,16.0770231,125.07,125.04,0.03]
[1743630849603,8.82,125.06,125.04,0.03]
[1743630850020,274.72432314,125.08,125.05,1.5208]
[1743630850225,8.82,125.07,125.05,7.6556]
[1743630850720,283.26,125.08,125.05,7.6556]
[1743630851125,82.1,125.07,125.05,7.6556]
[1743630852428,82.163,125.07,125.06,7.9961]
[1743630857845,0.063,125.07,125.06,7.9961]
[1743630858122,0.063,125.09,125.06,27.9865]
[1743630858924,0.063,125.09,125.07,1.5194]
[1743630859113,0.063,125.09,125.08,6.0499]
[1743630859516,82.1,125.12,125.08,7.5693]
[1743630859816,82.1,125.12,125.09,1.5194]
[1743630860933,82.1,125.12,125.1,7.9936]
[1743630861518,0.063,125.13,125.11,7.5693]
[1743630861719,0.063,125.14,125.11,7.5693]
[1743630863519,0.063,125.14,125.12,7.9923]
[1743630864730,0.063,125.13,125.12,7.9923]
[1743630865243,0.063,125.14,125.12,7.9923]
[1743630875449,0.0001,125.15,125.14,26.0]
[1743630875651,0.0001,125.16,125.15,32.0029]
[1743630875847,0.063,125.17,125.16,0.42648471]
[1743630875848,0.0001,125.17,125.16,0.42648471]
[1743630876051,0.0001,125.18,125.17,1.5534]
[1743630877153,0.0001,125.18,125.17,9.5425]
[1743630882459,0.0001,125.2,125.19,26.0]
[1743630882876,0.0001,125.2,125.19,32.0873]
[1743630883459,0.0001,125.2,125.19,40.0751]
[1743630884139,0.0001,125.2,125.19,40.50158471]
[1743630885052,0.0001,125.22,125.19,60.47118471]
[1743630885572,0.0001,125.22,125.21,7.9865]
[1743630890779,0.063,125.26,125.25,26.0]
[1743630890780,0.0001,125.26,125.25,26.0]
[1743630890946,0.0001,125.27,125.25,26.42648471]
[1743630891146,0.0001,125.27,125.26,1.6184]
[1743630891664,0.063,125.29,125.26,7.7199]
[1743630892381,0.063,125.29,125.28,26.0]
[1743630892760,0.063,125.29,125.28,33.9821]
[1743630893479,0.063,125.33,125.29,1.76056157]
[1743630893669,0.063,125.33,125.3,0.28432314]
[1743630893670,0.0001,125.33,125.3,0.28432314]
[1743630894049,0.0001,125.33,125.3,0.78432314]
[1743630894760,0.0001,125.33,125.31,7.9802]
[1743630894959,356.02,125.44,125.35,26.0]
[1743630895154,98.03486153,125.43,125.35,26.0]
[1743630895355,98.03486153,125.43,125.35,27.5728]
[1743630895964,82.1,125.43,125.35,27.5728]
[1743630896557,98.03486153,125.43,125.35,27.5728]
[1743630896871,106.00736153,125.43,125.36,7.977]
[1743630897171,15.93486153,125.42,125.36,7.977]
[1743630897662,16.36134624,125.42,125.36,7.977]
[1743630897970,15.93486153,125.41,125.36,7.977]
[1743630898352,16.36134624,125.42,125.36,7.977]
[1743630898761,15.93486153,125.41,125.36,7.977]
[1743630899947,0.42648471,125.4,125.36,7.977]
[1743630900147,15.93486153,125.39,125.35,7.9773]
[1743630900448,82.1,125.37,125.33,7.9789]
[1743630900880,82.1,125.37,125.32,7.9795]
[1743630905454,106.91519683,125.36,125.3,19.9517]
[1743630906257,106.91519683,125.36,125.29,7.9814]
[1743630906258,24.81519683,125.34,125.29,7.9814]
[1743630906452,24.81519683,125.33,125.29,7.9814]
[1743630907676,24.81519683,125.33,125.27,7.9827]
[1743630909177,24.81519683,125.33,125.27,27.9395]
[1743630909359,21.9817,125.34,125.27,27.9395]
[1743630909561,24.81519683,125.33,125.27,27.9395]
[1743630911054,25.24168154,125.32,125.27,7.9827]
[1743630911273,24.81519683,125.3,125.27,7.9827]
[1743630911881,24.81519683,125.3,125.24,27.9452]
[1743630912075,106.91519683,125.31,125.24,27.9452]
[1743630912461,114.89539683,125.31,125.24,27.9452]
[1743630913163,24.81519683,125.29,125.27,0.063]
[1743630913363,106.91519683,125.28,125.27,0.063]
[1743630913779,82.1,125.28,125.27,0.063]
[1743630913963,106.91519683,125.28,125.27,0.063]
[1743630914282,82.1,125.28,125.27,0.063]
[1743630921567,82.1,125.31,125.27,0.063]
[1743630921786,24.81519683,125.34,125.28,1.5243]
[1743630921963,106.91519683,125.35,125.28,1.5243]
[1743630923181,82.1,125.35,125.28,1.5243]
[1743630923374,106.91519683,125.35,125.28,1.5243]
[1743630923570,82.1,125.34,125.29,27.9351]
[1743630924472,82.1,125.34,125.29,67.8425]
[1743630924766,82.163,125.38,125.32,26.0]
[1743630924971,0.03,125.35,125.32,26.0]
[1743630926297,0.03,125.35,125.33,7.9789]
[1743630929993,0.03,125.35,125.33,9.5246]
[1743630930569,0.03,125.35,125.33,7.9789]
[1743630936698,0.03,125.35,125.33,8.0419]
[1743630949883,0.063,125.38,125.34,7.66]
[1743630950088,0.063,125.38,125.35,0.42648471]
[1743630950297,0.063,125.38,125.37,26.0]
[1743630950486,82.1,125.42,125.37,26.0]
[1743630951205,82.1,125.45,125.37,26.0]
[1743630951414,97.9806231,125.45,125.37,26.0]
[1743630951612,82.1,125.45,125.38,27.915]
[1743630951789,15.8806231,125.44,125.38,27.915]
[1743630952202,82.1,125.45,125.39,1.5888]
[1743630952395,82.1,125.45,125.4,6.4095]
[1743630953499,82.1,125.45,125.41,27.9084]
[1743630954193,98.0106231,125.48,125.41,27.9084]
[1743630954910,82.13,125.48,125.41,27.9084]
[1743630955115,98.0106231,125.48,125.41,27.9084]
[1743630957318,82.13,125.48,125.41,27.9084]
[1743630959715,82.13,125.48,125.41,67.7776]
[1743630959889,0.03,125.48,125.43,6.3647]
[1743630960094,0.03,125.48,125.44,27.9017]
[1743630961404,0.03,125.48,125.44,7.9719]
[1743630962099,0.03,125.48,125.44,33.9719]
[1743630963124,0.03,125.48,125.44,53.9017]
[1743630968205,0.03,125.48,125.44,7.9719]
[1743630968396,15.8806231,125.45,125.39,1.5465]
[1743630968599,15.8806231,125.43,125.38,7.9757]
[1743630968807,15.8806231,125.41,125.36,1.5616]
[1743630969002,15.8806231,125.37,125.33,8.0416]
[1743630969201,24.5606231,125.37,125.33,8.0416]
[1743630969512,15.8806231,125.35,125.33,0.063]
[1743630969700,24.83040238,125.34,125.33,0.063]
[1743630969899,0.42648471,125.36,125.33,0.063]
[1743630970109,24.83040238,125.35,125.33,0.063]
[1743630970308,106.93040238,125.35,125.33,0.063]
[1743630970706,82.1,125.35,125.33,0.063]
[1743630971317,8.68,125.37,125.33,26.063]
[1743630971626,82.1,125.39,125.33,32.5126]
[1743630971801,82.1,125.39,125.34,1.6165]
[1743630972408,82.1,125.39,125.35,27.9217]
[1743630974718,33.51040238,125.41,125.35,27.9217]
[1743630975128,82.1,125.42,125.35,27.9217]
[1743630976208,82.1,125.42,125.35,67.81]
[1743630978822,106.93040238,125.42,125.35,67.81]
[1743630979125,24.83040238,125.41,125.35,27.9217]
[1743630979633,82.1,125.42,125.35,67.81]
[1743630979931,106.93040238,125.42,125.35,67.81]
[1743630980228,82.1,125.42,125.35,67.81]
[1743630980430,106.93040238,125.42,125.35,67.81]
[1743630980724,24.83040238,125.41,125.35,27.9217]
[1743630981129,82.1,125.42,125.35,27.9217]
[1743630981319,24.83040238,125.41,125.35,27.9217]
[1743630981827,90.0733,125.42,125.35,27.9217]
[1743630982016,24.83040238,125.41,125.35,27.9217]
[1743630982613,82.1,125.42,125.35,27.9217]
[1743630982920,106.93040238,125.42,125.35,27.9217]
[1743630983117,24.83040238,125.41,125.35,27.9847]
[1743630983648,106.96040238,125.42,125.35,27.9847]
[1743630984116,82.13,125.42,125.35,27.9847]
[1743630984317,106.96040238,125.42,125.35,27.9847]
[1743630985236,82.13,125.42,125.35,27.9847]
[1743630985446,106.96040238,125.42,125.35,27.9847]
[1743630985938,106.96040238,125.42,125.35,67.873]
[1743630986125,82.13,125.42,125.35,67.873]
[1743630986440,106.96040238,125.42,125.35,67.873]
[1743630986609,106.96040238,125.42,125.35,27.9847]
[1743630988015,82.13,125.42,125.35,27.9847]
[1743630988725,106.96040238,125.42,125.35,27.9847]
[1743630993913,106.93040238,125.41,125.35,27.9847]
[1743630994715,24.83040238,125.4,125.35,27.9847]
[1743630995638,82.1,125.41,125.35,27.9847]
[1743630995810,24.83040238,125.4,125.35,27.9847]
[1743630997517,24.83040238,125.39,125.35,8.0406]
[1743630999139,24.83040238,125.38,125.35,8.0406]
[1743630999313,82.1,125.39,125.35,8.0406]
[1743630999515,24.83040238,125.36,125.35,0.063]
[1743630999725,0.42648471,125.36,125.35,0.063]
[1743631000032,25.25688709,125.36,125.35,0.063]
[1743631001336,33.23388709,125.36,125.35,0.063]
[1743631001729,58.56428947,125.36,125.35,0.063]
[1743631002232,26.0,125.34,125.33,0.063]
[1743631002436,75.66080476,125.34,125.33,0.063]
[1743631002942,83.63900476,125.34,125.33,0.063]
[1743631003133,84.06548947,125.34,125.33,0.063]
[1743631005237,82.037,125.32,125.27,0.063]
[1743631005433,24.83040238,125.29,125.27,0.063]
[1743631005947,24.83040238,125.28,125.27,0.063]
[1743631006142,106.86740238,125.28,125.27,0.063]
[1743631007739,107.29388709,125.28,125.27,0.063]
[1743631007971,115.27598709,125.28,125.27,0.063]
[1743631008443,58.06938947,125.28,125.27,0.063]
[1743631009238,24.83040238,125.23,125.22,0.063]
[1743631009444,33.49040238,125.23,125.22,0.063]
[1743631009748,33.91688709,125.23,125.22,0.063]
[1743631009948,41.90218709,125.23,125.22,0.063]
[1743631010534,66.73258947,125.23,125.22,0.063]
[1743631011039,0.42648471,125.22,125.2,0.063]
[1743631011232,24.83040238,125.21,125.2,0.063]
[1743631011951,33.24338709,125.21,125.2,0.063]
[1743631012328,0.42648471,125.2,125.14,8.0537]
[1743631012547,24.83040238,125.16,125.14,8.0537]
[1743631012743,8.66,125.15,125.14,8.0537]
[1743631013248,8.66,125.15,125.14,0.063]
[1743631013249,33.49040238,125.15,125.14,0.063]
[1743631013546,33.63256395,125.15,125.14,0.063]
[1743631013752,33.91688709,125.15,125.14,0.063]
[1743631014857,41.90728709,125.15,125.14,0.063]
[1743631015539,0.42648471,125.14,125.12,0.03]
[1743631015939,33.24848709,125.13,125.12,0.03]
[1743631017242,0.28432314,125.12,125.07,0.063]
[1743631017451,24.83040238,125.08,125.07,0.063]
[1743631017750,8.66,125.08,125.07,0.063]
[1743631018752,82.1,125.1,125.07,0.063]